fUSD/lending_fUSD_20241002
["ID","MTS","AMOUNT","RATE_DAILY","PERIOD"]
[339671728,1727827831693,-156.8,0.00010959,2]
[339671729,1727827831702,-162.96,0.00010959,2]
[339671730,1727827831712,-250.0,0.00011,2]
[339671731,1727827831721,-925.829423,0.00011536,2]
[339671732,1727827831730,-682.558385,0.00011536,2]
[339671733,1727827831739,-171.234419,0.00011536,2]
[339671734,1727827831749,-560.03913335,0.0001168,2]
[339671735,1727827831760,-365.79028965,0.0001168,2]
[339671736,1727827831769,-116.94509443,0.0001168,2]
[339671737,1727827831781,-517.85511205,0.0001168,2]
[339671738,1727827831792,-47.75817852,0.0001168,2]
[339671739,1727827831801,-925.829423,0.00011824,2]
[339671740,1727827831811,-92.97671574,0.00011824,2]
[339671741,1727827831822,-589.58166926,0.00011824,2]
[339671742,1727827831832,-195.83866559,0.00011969,2]
[339671743,1727827831843,-729.99075741,0.00011969,2]
[339671744,1727827831851,-682.558385,0.00011969,2]
[339671745,1727827831860,-717.90071047,0.00012113,2]
[339671746,1727827831872,-207.92871253,0.00012113,2]
[339671747,1727827831881,-619.20841032,0.00012113,2]
[339671748,1727827831900,-63.34997468,0.00012113,2]
[339671749,1727827831909,-499.99,0.00012113,2]
[339671750,1727827831918,-217.34,0.000127,2]
[339671751,1727827831928,-300.0,0.00013,2]
[339671752,1727827831937,-284.91,0.00013945,2]
[339671753,1727827831946,-150.0,0.00014999,2]
[339671754,1727827831955,-350.0,0.00015,2]
[339671755,1727827831964,-200.0,0.00015,2]
[339671756,1727827831974,-200.0,0.00015,2]
[339671757,1727827831983,-115.89973079,0.00015,2]
[339671758,1727827831994,-84.10026921,0.00015,2]
[339671759,1727827832004,-200.0,0.00015,2]
[339671760,1727827832013,-200.0,0.00015,2]
[339671761,1727827832022,-200.0,0.00015,2]
[339671762,1727827832031,-200.0,0.00015,2]
[339671763,1727827832040,-200.0,0.00015,2]
[339671764,1727827832049,-200.0,0.00015,2]
[339671765,1727827832058,-200.0,0.00015,2]
[339671766,1727827832068,-200.0,0.00015,2]
[339671767,1727827832077,-200.0,0.00015,2]
[339671768,1727827832086,-200.0,0.00015,2]
[339671769,1727827832095,-34.77156634,0.00015,2]
[339671770,1727827832109,-165.22843366,0.00015,2]
[339671771,1727827832118,-200.0,0.00015,2]
[339671772,1727827832127,-200.0,0.00015,2]
[339671773,1727827832137,-200.0,0.00015,2]
[339671774,1727827832146,-200.0,0.00015,2]
[339671775,1727827832156,-200.0,0.00015,2]
[339671776,1727827832166,-200.0,0.00015,2]
[339671777,1727827832175,-200.0,0.00015,2]
[339671778,1727827832184,-200.0,0.00015,2]
[339671779,1727827832193,-200.0,0.00015,2]
[339671781,1727827832205,-150.0,0.00015685,2]
[339671783,1727827832215,-200.0,0.000157,3]
[339671785,1727827832224,-200.0,0.00015771,2]
[339671787,1727827832234,-1168.36,0.00015795,2]
[339671789,1727827832245,-250.0,0.00015825,2]
[339671790,1727827832255,-174.68,0.00015826,2]
[339671792,1727827832265,-150.0,0.00015863,2]
[339671794,1727827832275,-150.0,0.00015963,2]
[339671796,1727827832284,-250.0,0.00015966,2]
[339671798,1727827832293,-150.0,0.00016,2]
[339671800,1727827832302,-150.0,0.00016104,2]
[339671801,1727827832311,-255.0,0.00016124,2]
[339671802,1727827832320,-500.0,0.00016144,2]
[339671803,1727827832329,-23900.0,0.00016182,2]
[339671804,1727827832339,-284.91,0.00016209,2]
[339671805,1727827832348,-152.22,0.00016436,2]
[339671806,1727827832358,-152.22,0.00016441,2]
[339671807,1727827832367,-152.22,0.00016445,2]
[339671808,1727827832377,-152.22,0.0001645,2]
[339671809,1727827832386,-152.22,0.00016454,2]
[339671810,1727827832395,-152.22,0.00016459,2]
[339671811,1727827832404,-152.22,0.00016464,2]
[339671812,1727827832414,-152.22,0.00016468,2]
[339671813,1727827832423,-152.22,0.00016473,2]
[339671814,1727827832432,-152.22,0.00016477,2]
[339671815,1727827832441,-152.22,0.00016482,2]
[339671816,1727827832450,-152.22,0.00016486,2]
[339671817,1727827832459,-152.22,0.00016491,2]
[339671818,1727827832470,-152.22,0.00016496,2]
[339671819,1727827832479,-152.22,0.000165,2]
[339671820,1727827832489,-152.22,0.00016505,2]
[339671821,1727827832498,-152.22,0.00016509,2]
[339671822,1727827832511,-152.22,0.00016514,2]
[339671823,1727827832520,-71.95951142,0.00016518,2]
[339671824,1727827832532,-80.26048858,0.00016518,2]
[339671825,1727827832541,-150.0,0.00016523,2]
[339671826,1727827832551,-155.02,0.00016534,2]
[339671827,1727827832560,-159.12,0.00016658,2]
[339671828,1727827832570,-200.0,0.000167,3]
[339671829,1727827832579,-170.94,0.00016831,2]
[339671830,1727827832588,-1000.0,0.00016863,2]
[339671831,1727827832597,-422.30975046,0.00016885,2]
[339671832,1727827832607,-155.0,0.0001689,2]
[339671833,1727827832616,-250.0,0.00016892,2]
[339671834,1727827832625,-201.08482375,0.00016915,15]
[339671835,1727827832634,-197.91,0.00016918,2]
[339671836,1727827832644,-200.0,0.00016918,2]
[339671837,1727827832653,-150.0,0.00016942,2]
[339671838,1727827832663,-212.09233861,0.00016973,2]
[339671839,1727827832673,-15016.39,0.00017,2]
[339671840,1727827832684,-200.0,0.00017,2]
[339671841,1727827832694,-400.0,0.00017,2]
[339671842,1727827832703,-214.5121,0.00017095,2]
[339671844,1727827832712,-1163.5541,0.00017095,2]
[339671846,1727827832721,-261.3305,0.000171,2]
[339671848,1727827832731,-200.0,0.0001717,2]
[339671849,1727827832740,-200.76346064,0.000172,2]
[339671850,1727827832749,-302.0,0.00017339,2]
[339671851,1727827832760,-150.0,0.00017361,2]
[339671852,1727827832769,-300.0,0.00017434,2]
[339671853,1727827832778,-1096.38479335,0.0001745,5]
[339671854,1727827832787,-1096.38479335,0.0001745,5]
[339671855,1727827832797,-1096.38479334,0.0001745,5]
[339671856,1727827832806,-165.05,0.00017512,2]
[339671857,1727827832815,-285.7631,0.00017577,2]
[339671858,1727827832824,-180.0,0.00017603,2]
[339671859,1727827832834,-200.0,0.000177,4]
[339671860,1727827832843,-175.77,0.00017718,2]
[339671861,1727827832852,-150.0,0.0001778,2]
[339671862,1727827832861,-652.04,0.000179,7]
[339671863,1727827832871,-493.9451486,0.00017901,2]
[339671864,1727827832880,-156.35,0.00017933,2]
[339671865,1727827832889,-156.35,0.00017944,2]
[339671866,1727827832898,-156.35,0.00017956,2]
[339671867,1727827832907,-156.35,0.00017967,2]
[339671868,1727827832916,-156.35,0.00017978,2]
[339671869,1727827832925,-156.35,0.00017989,2]
[339671870,1727827832934,-156.35,0.00018,2]
[339671871,1727827832943,-156.35,0.00018012,2]
[339671872,1727827832953,-156.35,0.00018023,2]
[339671874,1727827832962,-150.0,0.00018199,2]
[339671876,1727827832971,-184.73,0.00018389,2]
[339671878,1727827832980,-284.91,0.00018472,2]
[339671879,1727827832989,-150.0,0.00018618,2]
[339671880,1727827832998,-200.0,0.000187,5]
[339671881,1727827833009,-300.0,0.00018804,2]
[339671882,1727827833018,-1007.0,0.00018832,2]
[339671883,1727827833027,-500.0,0.00018836,2]
[339671884,1727827833036,-1000.0,0.00018971,2]
[339671885,1727827833046,-217.06,0.0001899,3]
[339671886,1727827833055,-450.0,0.00019,2]
[339671887,1727827833064,-197.91,0.00019033,2]
[339671888,1727827833074,-150.0,0.00019037,2]
[339671889,1727827833083,-150.0,0.00019456,2]
[339671890,1727827833092,-13511.8008,0.00019592,2]
[339671891,1727827833102,-175.77,0.00019598,2]
[339671892,1727827833111,-155.122,0.00019632,2]
[339671893,1727827833121,-336.3384,0.00019641,2]
[339671894,1727827833130,-2322.0413,0.00019692,2]
[339671895,1727827833139,-2952.5864,0.00019692,2]
[339671896,1727827833148,-3801.7967,0.00019692,2]
[339671897,1727827833158,-182.953,0.00019692,2]
[339671898,1727827833167,-200.0,0.000197,6]
[339671899,1727827833177,-14804.66,0.00019792,2]
[339671900,1727827833186,-1577.1293,0.000198,2]
[339671901,1727827833196,-150.0,0.00019875,2]
[339671902,1727827833208,-432.3699,0.0001992,2]
[339671903,1727827833218,-152.0,0.0002,2]
[339671904,1727827833228,-270.0,0.0002,2]
[339671905,1727827833237,-2000.0,0.0002,2]
[339671906,1727827833248,-491.2,0.0002,2]
[339671907,1727827833263,-2000.0,0.0002001,2]
[339671908,1727827833272,-3761.920081,0.0002002,2]
[339671909,1727827833284,-1000.0,0.00020253,2]
[339671910,1727827833294,-150.0,0.00020294,2]
[339671911,1727827833304,-5720.35487615,0.00020302,2]
[339671912,1727827833314,-15023.02,0.00020353,2]
[339671913,1727827833324,-165.05,0.00020402,2]
[339671914,1727827833334,-200.0,0.000207,7]
[339671915,1727827833344,-150.0,0.00020713,2]
[339671916,1727827833354,-176.75205608,0.00020725,2]
[339671917,1727827833364,-284.91,0.00020736,2]
[339671918,1727827833374,-512.384042,0.000208,2]
[339671919,1727827833384,-1000.0,0.00020844,2]
[339671920,1727827833393,-151.0,0.00020928,2]
[339671921,1727827833403,-151.0,0.00020928,2]
[339671922,1727827833412,-207.803299,0.00020928,2]
[339671923,1727827833421,-207.803299,0.00020928,2]
[339671924,1727827833431,-6495.9632467,0.0002093,2]
[339671925,1727827833440,-11857.1585966,0.0002093,2]
[339671926,1727827833450,-5880.8194649,0.0002093,2]
[339671927,1727827833460,-8667.4498179,0.0002093,2]
[339671928,1727827833469,-57341.2962885,0.0002093,2]
[339671929,1727827833479,-151.0,0.00020944,2]
[339671930,1727827833488,-151.0,0.00020944,2]
[339671931,1727827833497,-404.853311,0.00020958,2]
[339671932,1727827833509,-404.853311,0.00020958,2]
[339671933,1727827833518,-151.0,0.00020958,2]
[339671934,1727827833527,-151.0,0.00020958,2]
[339671935,1727827833537,-151.0,0.00020958,2]
[339671936,1727827833546,-151.0,0.00020958,2]
[339671937,1727827833556,-151.0,0.00020986,2]
[339671938,1727827833566,-151.0,0.00020986,2]
[339671939,1727827833575,-151.0,0.00020986,2]
[339671940,1727827833585,-151.0,0.00020986,2]
[339671941,1727827833594,-151.0,0.00020986,2]
[339671942,1727827833603,-151.0,0.00020986,2]
[339671943,1727827833613,-151.0,0.00020986,2]
[339671944,1727827833623,-324.259207,0.00020986,2]
[339671945,1727827833633,-324.259207,0.00020986,2]
[339671946,1727827833643,-151.0,0.00020986,2]
[339671947,1727827833652,-151.0,0.00020986,2]
[339671948,1727827833662,-398.89672,0.00020986,2]
[339671949,1727827833671,-398.89672,0.00020986,2]
[339671950,1727827833681,-151.0,0.00020986,2]
[339671951,1727827833690,-176.106504,0.00020986,2]
[339671952,1727827833699,-229.831828,0.00020986,2]
[339671953,1727827833708,-151.0,0.00020986,2]
[339671954,1727827833717,-207.294669,0.00020986,2]
[339671955,1727827833726,-176.106504,0.00020986,2]
[339671956,1727827833736,-207.294669,0.00020986,2]
[339671957,1727827833745,-631.096419,0.00020986,2]
[339671958,1727827833755,-631.096419,0.00020986,2]
[339671959,1727827833764,-151.0,0.00020986,2]
[339671960,1727827833774,-283.694622,0.00020986,2]
[339671961,1727827833782,-283.694622,0.00020986,2]
[339671962,1727827833791,-151.0,0.00020986,2]
[339671963,1727827833801,-151.0,0.00020986,2]
[339671964,1727827833810,-151.0,0.00020986,2]
[339671965,1727827833819,-151.0,0.00020986,2]
[339671966,1727827833829,-151.0,0.00020986,2]
[339671967,1727827833838,-151.0,0.00020986,2]
[339671968,1727827833847,-151.0,0.00020986,2]
[339671969,1727827833857,-292.29563,0.00020986,2]
[339671970,1727827833867,-151.0,0.00020986,2]
[339671971,1727827833876,-151.0,0.00020986,2]
[339671972,1727827833885,-531.062381,0.00020986,2]
[339671973,1727827833894,-167.480502,0.00020986,2]
[339671974,1727827833903,-531.062381,0.00020986,2]
[339671975,1727827833913,-151.0,0.00020986,2]
[339671976,1727827833922,-500.0,0.00021,2]
[339671977,1727827833932,-1000.0,0.00021079,2]
[339671978,1727827833941,-150.0,0.00021132,2]
[339671979,1727827833951,-197.91,0.00021148,2]
[339671980,1727827833960,-175.77,0.00021477,2]
[339671981,1727827833969,-150.0,0.00021551,2]
[339671982,1727827833978,-200.0,0.000217,7]
[339671983,1727827833988,-2238.7,0.00021918,2]
[339671984,1727827833998,-150.0,0.0002197,2]
[339671985,1727827834009,-1168.36,0.00022114,2]
[339671986,1727827834020,-150.0,0.00022389,2]
[339671987,1727827834031,-1000.0,0.00022466,2]
[339671988,1727827834040,-5720.35487606,0.0002248,2]
[339671989,1727827834050,-200.0,0.000227,8]
[339671990,1727827834059,-543.37,0.000228,14]
[339671991,1727827834069,-150.0,0.00022808,2]
[339671992,1727827834078,-550.0,0.00023,2]
[339671993,1727827834087,-284.91,0.00023,2]
[339671994,1727827834096,-1000.0,0.00023187,2]
[339671995,1727827834105,-150.0,0.00023227,2]
[339671996,1727827834115,-197.91,0.00023262,2]
[339671997,1727827834124,-804.662,0.00023288,3]
[339671998,1727827834133,-166.111,0.00023288,3]
[339671999,1727827834143,-150.0,0.00023646,2]
[339672000,1727827834152,-200.0,0.000237,9]
[339672001,1727827834161,-900.0,0.00024,40]
[339672002,1727827834171,-1908.1,0.00024112,2]
[339672003,1727827834180,-1908.1,0.00024118,2]
[339672004,1727827834189,-1908.1,0.00024125,2]
[339672005,1727827834202,-282.025811,0.00024131,7]
[339672006,1727827834211,-282.025811,0.00024131,7]
[339672007,1727827834220,-151.0,0.00024131,7]
[339672008,1727827834230,-1908.1,0.00024131,2]
[339672009,1727827834239,-1908.1,0.00024137,2]
[339672010,1727827834249,-1908.1,0.00024144,2]
[339672011,1727827834260,-1908.1,0.0002415,2]
[339672012,1727827834271,-1908.1,0.00024156,2]
[339672013,1727827834281,-1908.1,0.00024163,2]
[339672014,1727827834290,-151.0,0.00024163,7]
[339672015,1727827834300,-151.0,0.00024163,7]
[339672016,1727827834310,-151.0,0.00024163,7]
[339672017,1727827834319,-262.814826,0.00024163,7]
[339672018,1727827834329,-262.814826,0.00024163,7]
[339672019,1727827834338,-197.938352,0.00024163,7]
[339672020,1727827834347,-151.0,0.00024163,7]
[339672021,1727827834356,-197.938352,0.00024163,7]
[339672022,1727827834367,-160.529749,0.00024163,7]
[339672023,1727827834376,-151.0,0.00024163,7]
[339672024,1727827834386,-1908.1,0.00024169,2]
[339672025,1727827834396,-151.0,0.00024174,7]
[339672026,1727827834405,-151.0,0.00024174,7]
[339672027,1727827834414,-1908.1,0.00024176,2]
[339672028,1727827834423,-776.502386,0.00024176,7]
[339672029,1727827834432,-776.502386,0.00024176,7]
[339672030,1727827834442,-367.663263,0.00024176,7]
[339672031,1727827834451,-367.663263,0.00024176,7]
[339672032,1727827834460,-151.0,0.00024176,7]
[339672033,1727827834470,-151.0,0.00024176,7]
[339672034,1727827834480,-161.059381,0.00024176,7]
[339672035,1727827834490,-161.059381,0.00024176,7]
[339672036,1727827834499,-1908.1,0.00024182,2]
[339672037,1727827834517,-404.853311,0.00024183,7]
[339672038,1727827834527,-404.853311,0.00024183,7]
[339672039,1727827834537,-151.0,0.00024183,7]
[339672040,1727827834546,-151.0,0.00024183,7]
[339672041,1727827834555,-151.0,0.00024183,7]
[339672042,1727827834565,-151.0,0.00024183,7]
[339672043,1727827834574,-151.0,0.00024183,7]
[339672044,1727827834583,-151.0,0.00024188,7]
[339672045,1727827834593,-1908.1,0.00024188,2]
[339672046,1727827834602,-1908.1,0.00024195,2]
[339672047,1727827834611,-151.0,0.00024195,7]
[339672048,1727827834620,-207.803299,0.00024195,7]
[339672049,1727827834630,-207.803299,0.00024195,7]
[339672050,1727827834639,-151.0,0.00024195,7]
[339672051,1727827834648,-151.0,0.00024195,7]
[339672052,1727827834658,-151.0,0.00024195,7]
[339672053,1727827834667,-531.062381,0.00024195,7]
[339672054,1727827834677,-531.062381,0.00024195,7]
[339672055,1727827834686,-213.3436,0.00024195,7]
[339672056,1727827834695,-1908.1,0.00024201,2]
[339672057,1727827834704,-151.0,0.00024207,7]
[339672058,1727827834714,-287.006378,0.00024207,7]
[339672059,1727827834723,-151.0,0.00024207,7]
[339672060,1727827834732,-324.259207,0.00024207,7]
[339672061,1727827834741,-324.259207,0.00024207,7]
[339672062,1727827834752,-151.0,0.00024207,7]
[339672063,1727827834763,-398.89672,0.00024207,7]
[339672064,1727827834772,-398.89672,0.00024207,7]
[339672065,1727827834782,-151.0,0.00024207,7]
[339672066,1727827834791,-176.106504,0.00024207,7]
[339672067,1727827834800,-151.0,0.00024207,7]
[339672068,1727827834809,-207.294669,0.00024207,7]
[339672069,1727827834818,-176.106504,0.00024207,7]
[339672070,1727827834828,-207.294669,0.00024207,7]
[339672071,1727827834837,-631.096419,0.00024207,7]
[339672072,1727827834846,-631.096419,0.00024207,7]
[339672073,1727827834855,-151.0,0.00024207,7]
[339672074,1727827834864,-283.694622,0.00024207,7]
[339672075,1727827834874,-283.694622,0.00024207,7]
[339672076,1727827834883,-151.0,0.00024207,7]
[339672077,1727827834891,-151.0,0.00024207,7]
[339672078,1727827834901,-151.0,0.00024207,7]
[339672079,1727827834911,-151.0,0.00024207,7]
[339672080,1727827834920,-151.0,0.00024207,7]
[339672081,1727827834929,-193.01318,0.00024207,7]
[339672082,1727827834938,-1908.1,0.00024207,2]
[339672083,1727827834947,-1908.1,0.00024214,2]
[339672084,1727827834956,-1908.1,0.0002422,2]
[339672085,1727827834966,-1908.1,0.00024226,2]
[339672086,1727827834975,-1908.1,0.00024233,2]
[339672087,1727827834984,-4000.0,0.00024316,2]
[339672088,1727827834993,-151.0,0.00024316,7]
[339672089,1727827835003,-151.0,0.00024316,7]
[339672090,1727827835012,-5720.35487606,0.00024657,2]
[339672091,1727827835021,-200.0,0.000247,10]
[339672092,1727827835031,-151.0,0.000247,7]
[339672093,1727827835041,-6691.23,0.0002498,2]
[339672094,1727827835051,-1000.0,0.00025,30]
[339672095,1727827835061,-600.0,0.00025,2]
[339672096,1727827835071,-500.0,0.00025091,2]
[339672097,1727827835081,-500.0,0.000251,2]
[339672098,1727827835090,-500.0,0.000251,2]
[339672099,1727827835328,-500.0,0.00025109,2]
[339672100,1727827835339,-500.0,0.00025109,2]
[339672101,1727827835348,-500.0,0.00025109,2]
[339672102,1727827835357,-500.0,0.00025117,2]
[339672103,1727827835367,-500.0,0.00025117,2]
[339672104,1727827835376,-500.0,0.00025117,2]
[339672105,1727827835386,-500.0,0.00025126,2]
[339672106,1727827835395,-500.0,0.00025126,2]
[339672107,1727827835406,-500.0,0.00025126,2]
[339672108,1727827835415,-500.0,0.00025135,2]
[339672109,1727827835424,-500.0,0.00025135,2]
[339672110,1727827835434,-500.0,0.00025135,2]
[339672111,1727827835443,-151.0,0.00025135,7]
[339672112,1727827835452,-151.0,0.00025135,7]
[339672113,1727827835462,-262.814826,0.00025135,7]
[339672114,1727827835472,-262.814826,0.00025135,7]
[339672115,1727827835481,-197.938352,0.00025135,7]
[339672116,1727827835491,-151.0,0.00025135,7]
[339672117,1727827835500,-197.938352,0.00025135,7]
[339672118,1727827835513,-151.0,0.00025135,7]
[339672119,1727827835523,-500.0,0.00025144,2]
[339672120,1727827835532,-500.0,0.00025144,2]
[339672121,1727827835542,-500.0,0.00025144,2]
[339672122,1727827835552,-270.01,0.00025144,2]
[339672123,1727827835561,-500.0,0.00025153,2]
[339672124,1727827835570,-500.0,0.00025153,2]
[339672125,1727827835580,-500.0,0.00025153,2]
[339672126,1727827835590,-282.025811,0.00025153,7]
[339672127,1727827835599,-282.025811,0.00025153,7]
[339672128,1727827835609,-151.0,0.00025161,7]
[339672129,1727827835618,-500.0,0.00025161,2]
[339672130,1727827835628,-500.0,0.00025161,2]
[339672131,1727827835637,-500.0,0.00025161,2]
[339672132,1727827835647,-776.502386,0.0002517,7]
[339672133,1727827835656,-776.502386,0.0002517,7]
[339672134,1727827835666,-367.663263,0.0002517,7]
[339672135,1727827835676,-367.663263,0.0002517,7]
[339672136,1727827835685,-151.0,0.0002517,7]
[339672137,1727827835694,-151.0,0.0002517,7]
[339672138,1727827835704,-161.059381,0.0002517,7]
[339672139,1727827835713,-161.059381,0.0002517,7]
[339672140,1727827835723,-500.0,0.0002517,2]
[339672141,1727827835732,-500.0,0.0002517,2]
[339672142,1727827835742,-500.0,0.0002517,2]
[339672143,1727827835751,-500.0,0.00025179,2]
[339672144,1727827835764,-500.0,0.00025179,2]
[339672145,1727827835774,-500.0,0.00025179,2]
[339672146,1727827835783,-151.0,0.00025179,7]
[339672147,1727827835793,-151.0,0.00025179,7]
[339672148,1727827835802,-151.0,0.00025179,7]
[339672149,1727827835811,-531.062381,0.00025179,7]
[339672150,1727827835821,-531.062381,0.00025179,7]
[339672151,1727827835830,-500.0,0.00025188,2]
[339672152,1727827835839,-500.0,0.00025188,2]
[339672153,1727827835849,-500.0,0.00025188,2]
[339672154,1727827835859,-500.0,0.00025197,2]
[339672155,1727827835868,-500.0,0.00025197,2]
[339672156,1727827835878,-500.0,0.00025197,2]
[339672157,1727827835888,-500.0,0.00025205,2]
[339672158,1727827835897,-500.0,0.00025205,2]
[339672159,1727827835906,-500.0,0.00025205,2]
[339672160,1727827835916,-500.0,0.00025214,2]
[339672161,1727827835925,-500.0,0.00025214,2]
[339672162,1727827835935,-500.0,0.00025214,2]
[339672163,1727827835944,-500.0,0.00025223,2]
[339672164,1727827835954,-500.0,0.00025223,2]
[339672165,1727827835963,-500.0,0.00025223,2]
[339672166,1727827835972,-284.91,0.00025264,2]
[339672167,1727827835982,-151.0,0.00025295,7]
[339672168,1727827835991,-151.704968,0.00025295,7]
[339672169,1727827836000,-1000.0,0.00025295,2]
[339672170,1727827836014,-197.91,0.00025377,120]
[339672171,1727827836023,-1000.0,0.000255,30]
[339672172,1727827836033,-500.0,0.00025662,120]
[339672173,1727827836042,-1000.0,0.000257,30]
[339672174,1727827836051,-200.0,0.000257,11]
[339672175,1727827836061,-404.853311,0.000257,7]
[339672176,1727827836070,-404.853311,0.000257,7]
[339672177,1727827836079,-151.0,0.000257,7]
[339672178,1727827836089,-151.0,0.000257,7]
[339672179,1727827836098,-151.0,0.000257,7]
[339672180,1727827836107,-151.0,0.000257,7]
[339672181,1727827836116,-283.694622,0.000257,7]
[339672182,1727827836126,-283.694622,0.000257,7]
[339672183,1727827836135,-151.0,0.000257,7]
[339672184,1727827836144,-151.0,0.000257,7]
[339672185,1727827836153,-151.0,0.000257,7]
[339672186,1727827836163,-151.0,0.000257,7]
[339672187,1727827836172,-151.0,0.000257,7]
[339672188,1727827836181,-1000.0,0.000258,30]
[339672189,1727827836192,-1000.0,0.000259,30]
[339672190,1727827836204,-1000.0,0.00026,30]
[339672191,1727827836214,-1000.0,0.000265,30]
[339672192,1727827836223,-2000.0,0.00026556,120]
[339672193,1727827836232,-500.0,0.00026656,120]
[339672194,1727827836243,-200.0,0.000267,11]
[339672195,1727827836252,-161.96,0.00026712,2]
[339672196,1727827836263,-5720.35487606,0.00026835,2]
[339672197,1727827836273,-1000.0,0.00027,30]
[339672198,1727827836283,-151.0,0.00027,7]
[339672199,1727827836293,-151.0,0.00027,7]
[339672200,1727827836302,-650.0,0.00027,2]
[339672201,1727827836312,-207.803299,0.00027,7]
[339672202,1727827836321,-207.803299,0.00027,7]
[339672203,1727827836330,-151.0,0.00027,7]
[339672204,1727827836339,-151.0,0.00027,7]
[339672205,1727827836349,-324.259207,0.00027,7]
[339672206,1727827836358,-324.259207,0.00027,7]
[339672207,1727827836369,-151.0,0.00027,7]
[339672208,1727827836378,-398.89672,0.00027,7]
[339672209,1727827836388,-398.89672,0.00027,7]
[339672210,1727827836398,-151.0,0.00027,7]
[339672211,1727827836407,-176.106504,0.00027,7]
[339672212,1727827836417,-151.0,0.00027,7]
[339672213,1727827836426,-207.294669,0.00027,7]
[339672214,1727827836436,-176.106504,0.00027,7]
[339672215,1727827836446,-207.294669,0.00027,7]
[339672216,1727827836455,-631.096419,0.00027,7]
[339672217,1727827836465,-631.096419,0.00027,7]
[339672218,1727827836474,-151.0,0.00027,7]
[339672219,1727827836483,-2000.0,0.00027,2]
[339672220,1727827836492,-2006.1523,0.0002701,2]
[339672221,1727827836501,-500.0,0.00027103,120]
[339672222,1727827836512,-1000.0,0.0002725,30]
[339672223,1727827836521,-500.0,0.00027345,120]
[339672224,1727827836531,-282.025811,0.00027397,7]
[339672225,1727827836539,-282.025811,0.00027397,7]
[339672226,1727827836549,-151.0,0.00027397,7]
[339672227,1727827836558,-151.0,0.00027397,7]
[339672228,1727827836567,-200.0,0.00027397,60]
[339672229,1727827836576,-4833.8494939,0.000274,2]
[339672230,1727827836585,-776.502386,0.000274,7]
[339672231,1727827836594,-776.502386,0.000274,7]
[339672232,1727827836603,-367.663263,0.000274,7]
[339672233,1727827836613,-367.663263,0.000274,7]
[339672234,1727827836622,-151.0,0.000274,7]
[339672235,1727827836632,-151.0,0.000274,7]
[339672236,1727827836641,-161.059381,0.000274,7]
[339672237,1727827836650,-161.059381,0.000274,7]
[339672238,1727827836659,-200.0,0.00027451,120]
[339672239,1727827836668,-533.76,0.00027461,2]
[339672240,1727827836679,-358.38,0.00027461,2]
[339672241,1727827836688,-260.197648,0.00027461,7]
[339672242,1727827836697,-151.0,0.00027461,7]
[339672243,1727827836707,-151.0,0.00027461,7]